bitfinex/quotes_ETHUSD_20250114
["timestamp","ask_amount","ask_price","bid_price","bid_amount"]
[1736879401962,3.14146672,3223.1,3222.6,0.8308]
[1736879402163,0.03878672,3223.1,3222.6,0.8308]
[1736879402856,0.53253853,3223.8,3222.6,0.8308]
[1736879403194,3.10156,3224.2,3223.0,3.0]
[1736879403362,0.1655672,3224.5,3223.7,3.10199]
[1736879403560,0.1655672,3224.5,3223.8,3.93272]
[1736879403965,0.1655672,3224.5,3223.8,0.8308]
[1736879404175,0.1655672,3224.5,3224.0,3.0]
[1736879404381,0.1655672,3224.5,3224.2,0.8308]
[1736879404916,0.1655672,3224.5,3224.2,3.8308]
[1736879406012,0.1655672,3224.5,3224.4,6.10135]
[1736879406392,0.1655672,3224.5,3224.4,6.93215]
[1736879406915,0.1655672,3224.5,3224.4,3.8308]
[1736879407087,0.1655672,3224.5,3224.4,0.8308]
[1736879407491,0.1655672,3224.5,3224.1,0.8308]
[1736879408298,0.1655672,3224.5,3223.6,3.0]
[1736879408299,0.03876909,3224.4,3223.8,0.8308]
[1736879408511,0.1655672,3224.5,3223.8,1.52409]
[1736879408914,0.1655672,3224.5,3223.8,0.8308]
[1736879409118,0.0441,3224.3,3223.5,0.8308]
[1736879409301,3.1017,3224.1,3223.5,0.8308]
[1736879409676,0.0441,3224.3,3223.5,0.8308]
[1736879409930,3.1017,3224.1,3223.5,0.8308]
[1736879410427,3.10183,3223.9,3223.2,0.8308]
[1736879410578,3.10182,3224.0,3223.2,0.8308]
[1736879410979,0.31458,3224.1,3223.2,3.93329]
[1736879411242,0.0441,3224.3,3223.2,3.93329]
[1736879411540,3.2669072,3224.5,3223.7,0.8308]
[1736879412039,3.10144,3224.4,3223.7,0.8308]
[1736879412195,0.1655672,3224.5,3223.7,0.8308]
[1736879412396,3.2668572,3224.5,3223.7,0.8308]
[1736879412605,0.81050144,3224.5,3223.7,0.8308]
[1736879412805,3.10162,3224.2,3223.4,0.8308]
[1736879413008,3.14016556,3224.4,3223.4,3.8308]
[1736879413613,3.10148,3224.3,3223.4,3.8308]
[1736879415001,3.10148,3224.3,3223.4,3.93309]
[1736879415205,3.10148,3224.3,3223.4,4.626399]
[1736879415512,0.1655672,3224.5,3223.5,3.0]
[1736879415811,0.1655672,3224.5,3223.7,3.10195]
[1736879416359,3.10139,3224.4,3223.6,0.8308]
[1736879416540,0.1655672,3224.5,3223.6,3.9329]
[1736879416855,3.90735044,3224.5,3223.6,0.8308]
[1736879418048,0.84485247,3224.5,3223.6,0.8308]
[1736879418206,3.10165,3224.1,3223.6,0.8308]
[1736879418604,3.1019,3223.9,3223.6,0.8308]
[1736879418915,3.1019,3223.9,3222.9,7.11324735]
[1736879418916,3.10235,3223.4,3223.0,0.7885]
[1736879419248,3.10215,3223.6,3223.0,0.7885]
[1736879419611,3.10196,3223.8,3223.0,0.7885]
[1736879419815,3.10196,3223.8,3223.1,0.47989774]
[1736879420534,3.10196,3223.8,3223.0,0.7885]
[1736879420738,2.94438525,3223.8,3223.0,0.7885]
[1736879421040,3.10202,3223.7,3223.0,0.7885]
[1736879421333,3.10223,3223.5,3223.0,0.7885]
[1736879421908,3.1024,3223.4,3223.0,0.7885]
[1736879422109,3.10213,3223.6,3223.0,0.7885]
[1736879422513,3.10225,3223.5,3223.0,0.7885]
[1736879422714,0.0441,3223.9,3223.0,0.7885]
[1736879422908,3.10207,3223.7,3223.0,0.7885]
[1736879423159,3.2668872,3224.5,3223.4,3.0]
[1736879423343,0.1655672,3224.5,3223.7,3.89045]
[1736879423544,0.1655672,3224.5,3223.8,3.1019]
[1736879423743,0.1655672,3224.5,3223.7,3.89049]
[1736879423944,3.10148,3224.3,3223.7,0.7885]
[1736879424151,0.1655672,3224.5,3223.7,3.89051]
[1736879424349,0.1655672,3224.5,3223.8,2.94438525]
[1736879424564,0.1655672,3224.5,3224.1,0.7885]
[1736879428256,0.2096672,3224.5,3223.5,0.7885]
[1736879428560,0.6681747,3224.4,3223.5,0.7885]
[1736879428864,3.10177,3224.0,3223.5,0.7885]
[1736879429274,0.2,3224.1,3223.5,0.7885]
[1736879429451,0.2,3224.1,3223.5,3.0]
[1736879429701,0.1655672,3224.5,3223.6,0.7885]
[1736879429879,0.1655672,3224.5,3223.8,0.7885]
[1736879430061,0.1655672,3224.5,3223.9,3.10176]
[1736879430259,0.1655672,3224.5,3223.8,0.7885]
[1736879430778,3.10136,3224.4,3223.8,0.7885]
[1736879430975,0.1655672,3224.5,3223.8,0.7885]
[1736879431554,0.1655672,3224.5,3223.9,3.10181]
[1736879431864,3.10142,3224.4,3223.8,0.7885]
[1736879432285,0.37079872,3224.4,3223.2,3.0]
[1736879432487,3.10172,3224.1,3223.3,0.7996]
[1736879433301,0.37079872,3224.4,3223.3,0.7996]
[1736879433466,3.10148,3224.3,3223.4,3.0]
[1736879434289,0.0441,3224.4,3223.3,0.7996]
[1736879434468,0.1655672,3224.5,3223.7,0.7996]
[1736879434667,0.1655672,3224.5,3223.7,3.90153]
[1736879434852,0.1655672,3224.5,3223.7,0.7996]
[1736879435588,3.2668272,3224.5,3223.7,0.7996]
[1736879435892,3.10211,3223.7,3223.1,0.7996]
[1736879436093,0.0441,3223.5,3222.9,3.86669915]
[1736879436391,0.03878097,3223.6,3222.9,3.86669915]
[1736879436392,3.10217,3223.6,3222.9,3.86669915]
[1736879436589,3.10217,3223.6,3222.8,0.7996]
[1736879436590,0.2,3223.7,3222.8,0.7996]
[1736879436789,3.10225,3223.5,3222.8,0.7996]
[1736879436960,0.038783,3223.4,3222.8,0.7996]
[1736879437163,0.03878553,3223.6,3222.8,0.7996]
[1736879437361,3.10235,3223.4,3222.8,0.7996]
[1736879438418,3.10243,3223.3,3222.8,0.7996]
[1736879438713,3.10223,3223.5,3222.8,0.7996]
[1736879439282,3.10231,3223.4,3222.8,0.7996]
[1736879439511,3.10251,3223.2,3222.7,3.9130968]
[1736879439722,3.1028,3222.9,3222.7,3.9130968]
[1736879439883,0.0441,3223.3,3222.7,3.9130968]
[1736879440421,0.0441,3223.6,3222.8,0.7996]
[1736879440586,3.10224,3223.5,3222.8,0.7996]
[1736879440782,0.03878647,3223.9,3222.8,1.58117568]
[1736879440783,3.10192,3223.8,3222.8,1.58117568]
[1736879440982,3.10192,3223.8,3222.7,3.9130968]
[1736879440983,3.10249,3223.3,3222.7,3.9130968]
[1736879441186,3.10252,3223.2,3222.7,3.9130968]
[1736879441421,3.10233,3223.4,3222.7,3.9130968]
[1736879441983,0.03878498,3223.3,3222.7,3.9130968]
[1736879442406,3.10267,3223.1,3222.7,3.9130968]
[1736879442607,3.10242,3223.3,3222.8,0.7996]
[1736879443187,0.03878643,3223.5,3222.8,0.7996]
[1736879443188,3.1023,3223.5,3222.8,0.7996]
[1736879444023,0.0441,3223.7,3222.8,0.7996]
[1736879444204,0.2,3223.6,3222.8,0.7996]
[1736879444525,0.2,3223.6,3222.8,1.27086968]
[1736879444723,3.3022,3223.6,3222.8,1.27086968]
[1736879444899,0.03878252,3223.5,3222.8,0.7996]
[1736879445104,3.1024,3223.4,3222.8,0.7996]
[1736879445299,0.23878623,3223.6,3222.8,0.7996]
[1736879445529,3.10241,3223.3,3222.8,0.7996]
[1736879447536,3.10253,3223.2,3222.8,0.7996]
[1736879447755,3.10276,3223.0,3222.7,3.9130968]
[1736879448422,0.0441,3223.1,3222.7,3.9130968]
[1736879448941,3.10288,3222.9,3222.7,3.9130968]
[1736879452442,0.0441,3223.1,3222.7,3.9130968]
[1736879452737,0.03878901,3223.0,3222.1,0.7986]
[1736879452904,3.1031,3222.6,3222.1,0.7986]
[1736879453122,3.14176265,3222.8,3222.1,0.7986]
[1736879453458,3.10297,3222.8,3222.1,0.7986]
[1736879454154,0.0441,3222.6,3221.7,0.7986]
[1736879454365,0.2,3222.5,3221.7,0.7986]
[1736879454556,0.03879585,3222.4,3221.7,0.7986]
[1736879454722,3.10329,3222.4,3221.7,0.7986]
[1736879454931,0.2,3222.5,3221.7,3.90254]
[1736879455158,0.2,3222.5,3221.8,0.7986]
[1736879455473,0.2,3222.5,3222.0,3.90225]
[1736879455761,0.2,3222.5,3222.0,0.7986]
[1736879457728,0.2,3222.5,3222.0,3.90224]
[1736879458345,0.2,3222.5,3222.0,0.7986]
[1736879458547,3.10283,3222.9,3222.0,0.7986]
[1736879458748,3.10283,3222.9,3222.0,1.52229423]
[1736879458965,3.10319,3222.5,3222.0,0.7986]
[1736879459266,0.03879472,3222.9,3222.0,0.7986]
[1736879459427,3.10302,3222.7,3222.0,0.7986]
[1736879459852,3.10309,3222.6,3222.0,0.7986]
[1736879460531,3.10289,3222.8,3222.0,0.7986]
[1736879460752,3.10327,3222.5,3222.0,0.7986]
[1736879461193,3.10302,3222.7,3222.0,0.7986]
[1736879461891,3.1031,3222.6,3222.0,0.7986]
[1736879462307,3.34584,3223.0,3222.0,0.7986]
[1736879462308,3.10318,3222.5,3222.0,0.7986]
[1736879462763,3.14161377,3222.9,3222.0,0.7986]
[1736879462961,3.10308,3222.6,3222.0,0.7986]
[1736879463562,0.03879377,3222.5,3222.0,0.7986]
[1736879463761,3.10344,3222.3,3221.4,0.7892]
[1736879464090,0.199,3223.0,3221.4,0.7892]
[1736879464091,0.2431,3223.0,3222.1,0.7892]
[1736879464290,3.10218,3223.6,3222.4,0.7892]
[1736879464497,0.0441,3223.7,3222.5,3.0]
[1736879464818,3.10224,3223.5,3222.7,0.7892]
[1736879465461,6.24539525,3223.8,3222.7,3.1029]
[1736879465662,3.10212,3223.6,3222.9,0.7892]
[1736879466162,3.10203,3223.7,3222.9,0.7892]
[1736879466585,3.10203,3223.7,3223.0,0.7892]
[1736879467261,3.10169,3224.1,3223.2,0.7892]
[1736879467502,3.30069,3224.1,3223.2,0.7892]
[1736879467796,3.10174,3224.0,3223.2,0.7892]
[1736879468316,3.10158,3224.2,3223.2,3.8917]
[1736879468618,3.30058,3224.2,3223.4,0.7892]
[1736879468783,3.10167,3224.1,3223.4,0.7892]
[1736879468980,0.199,3224.2,3223.4,0.7892]
[1736879469197,3.10176,3224.0,3223.4,0.7892]
[1736879471531,3.10184,3223.9,3223.4,0.7892]
[1736879471690,3.41590162,3223.9,3223.4,0.7892]
[1736879471886,3.10204,3223.7,3223.4,0.7892]
[1736879472090,0.31406162,3223.9,3223.4,0.7892]
[1736879472290,3.14338525,3224.2,3223.4,0.7892]
[1736879472514,3.18216215,3224.2,3223.4,0.7892]
[1736879472714,2.94438525,3223.9,3223.1,0.7892]
[1736879472920,3.10239,3223.4,3223.1,0.7892]
[1736879473086,3.10239,3223.4,3222.5,0.6177126]
[1736879473087,0.03878295,3223.5,3222.6,0.7892]
[1736879473417,0.03878295,3223.5,3221.6,5.32879477]
[1736879473418,2.94438525,3223.0,3221.9,1.42357393]
[1736879473619,3.10311,3222.6,3221.9,3.7892]
[1736879473920,3.10311,3222.6,3221.9,0.7892]
[1736879474304,3.10308,3222.6,3221.9,0.7892]
[1736879474498,3.10292,3222.8,3221.9,0.7892]
[1736879474711,0.199,3222.9,3221.9,1.178514]
[1736879474917,3.10316,3222.6,3221.9,0.7892]
[1736879476339,0.199,3222.9,3221.9,0.7892]
[1736879476540,3.10312,3222.6,3221.9,0.7892]
[1736879477341,0.199,3222.9,3221.9,0.7892]
[1736879477498,3.10299,3222.7,3221.9,0.7892]
[1736879477701,3.433189,3222.7,3221.9,0.7892]
[1736879478322,3.1031,3222.6,3221.9,0.7892]
[1736879478563,3.10292,3222.8,3221.9,3.7892]
[1736879478770,0.199,3222.9,3222.1,3.7706]
[1736879479039,2.98848525,3223.7,3222.8,3.10288]
[1736879479212,3.10183,3223.9,3223.0,0.7706]
[1736879479456,0.199,3224.0,3223.1,0.7706]
[1736879479730,3.30074,3224.0,3223.1,3.87312]
[1736879479944,0.199,3224.0,3223.1,0.7706]
[1736879480145,3.30081,3224.0,3223.1,0.7706]
[1736879480446,3.30081,3224.0,3223.1,3.8732]
[1736879481151,3.30081,3224.0,3223.1,4.32251763]
[1736879481301,2.98848525,3223.7,3223.1,0.7706]
[1736879481639,3.10241,3223.3,3222.5,0.7706]
[1736879481846,3.10241,3223.3,3222.5,3.7706]
[1736879482209,0.199,3224.0,3222.8,0.7706]
[1736879482428,3.10188,3223.9,3222.8,3.0]
[1736879482657,0.199,3224.0,3223.2,0.7706]
[1736879482939,3.10189,3223.9,3223.2,0.7706]
[1736879484121,0.199,3224.0,3223.2,0.7706]
[1736879484356,3.3008,3224.0,3223.2,0.7706]
[1736879484545,3.3008,3224.0,3223.2,1.157929]
[1736879486023,3.10187,3223.9,3223.2,1.157929]
[1736879486360,0.199,3224.0,3223.2,0.7706]
[1736879486361,3.10196,3223.8,3223.2,0.7706]
[1736879486661,3.30078,3224.0,3223.2,0.7706]
[1736879486830,3.10187,3223.9,3223.2,0.7706]
[1736879488633,3.29887,3223.9,3223.2,0.7706]
[1736879488829,0.197,3223.9,3223.2,0.7706]
[1736879490863,3.29885,3223.9,3223.2,0.7706]
[1736879491065,3.628735,3223.9,3223.2,0.7706]
[1736879492343,3.29885,3223.9,3223.2,0.7706]
[1736879492846,0.197,3223.9,3223.2,0.7706]
[1736879493057,3.29883,3223.9,3223.2,0.7706]
[1736879493448,0.197,3223.9,3223.2,0.7706]
[1736879493645,0.197,3223.9,3223.3,0.7706]
[1736879493864,3.29856,3224.2,3223.4,0.7706]
[1736879494065,3.632826,3224.2,3223.4,0.7706]
[1736879494271,3.10138,3224.4,3223.5,3.0]
[1736879494574,0.1655672,3224.5,3223.7,3.10195]
[1736879494865,0.1655672,3224.5,3223.8,0.8141]
[1736879495370,0.1655672,3224.5,3223.8,3.91593]
[1736879495533,0.1655672,3224.5,3223.9,0.8141]
[1736879496346,3.2668272,3224.5,3223.9,0.8141]
[1736879496555,0.32668272,3224.4,3223.9,0.8141]
[1736879496747,0.1655672,3224.5,3223.9,0.8141]
[1736879498140,0.1655672,3224.5,3224.1,0.8141]
[1736879498353,0.1655672,3224.5,3224.3,0.8141]
[1736879498685,0.1655672,3224.5,3224.4,6.94548356]
[1736879498995,0.1655672,3224.5,3224.4,6.91545]
[1736879499167,0.1655672,3224.5,3224.4,7.606995]
[1736879501387,0.1655672,3224.5,3224.4,8.23135995]
[1736879501683,0.1655672,3224.5,3224.4,8.78135995]
[1736879502087,3.29686,3226.0,3225.1,0.8141]
[1736879502293,3.29686,3226.0,3225.1,3.91476]
[1736879502584,3.626546,3226.0,3225.1,3.91476]
[1736879502765,3.09992,3225.9,3225.1,0.8141]
[1736879503167,3.6652795,3226.0,3225.1,0.8141]
[1736879503482,3.09993,3225.9,3225.1,0.8141]
[1736879504266,3.10009,3225.8,3225.1,0.8141]
[1736879504486,0.0387535,3225.7,3225.1,0.8141]
[1736879504867,3.1388735,3225.7,3225.1,0.8141]
[1736879505193,3.10012,3225.7,3225.1,0.8141]
[1736879506089,0.197,3225.8,3225.1,0.8141]
[1736879506391,3.09994,3225.9,3225.1,0.8141]
[1736879506590,3.606934,3225.9,3225.1,0.8141]
[1736879506789,3.409934,3225.9,3225.1,0.8141]
[1736879506981,3.606934,3225.9,3225.1,0.8141]
[1736879507288,0.506994,3225.9,3225.1,0.8141]
[1736879507588,3.10002,3225.8,3225.1,0.8141]
[1736879510771,0.197,3225.9,3225.1,0.8141]
[1736879510977,3.29691,3225.9,3225.1,0.8141]
[1736879511174,0.197,3225.9,3225.1,0.8141]
[1736879511374,3.09922,3226.7,3225.7,3.92151]
[1736879511608,3.09903,3226.9,3226.0,0.8215]
[1736879511901,3.09874,3227.2,3226.2,0.8215]
[1736879512102,3.09874,3227.2,3226.3,0.8215]
[1736879512262,3.09854,3227.4,3226.4,6.02873288]
[1736879512463,3.09854,3227.4,3226.5,0.8215]
[1736879512687,3.09854,3227.4,3226.5,1.56152329]
[1736879513708,3.20921724,3227.6,3226.5,0.8215]
[1736879514001,3.09883,3227.1,3226.5,0.8215]
[1736879514369,3.09886,3227.0,3226.5,0.8215]
[1736879516000,0.197,3227.3,3226.5,0.8215]
[1736879516188,3.09884,3227.1,3226.5,0.8215]
[1736879517421,3.09869,3227.2,3226.5,0.8215]
[1736879518426,3.408559,3227.2,3226.5,0.8215]
[1736879519012,0.0441,3227.6,3226.5,0.8215]
[1736879519217,0.194,3227.5,3226.5,3.92076]
[1736879519395,3.09866,3227.2,3226.5,0.8215]
[1736879520325,0.194,3227.5,3226.5,0.8215]
[1736879520492,3.09862,3227.3,3226.5,0.8215]
[1736879520697,3.09876,3227.1,3226.5,0.8215]
[1736879521112,3.09859,3227.3,3226.5,0.8215]
[1736879521398,0.194,3227.3,3226.5,0.8215]
[1736879521706,0.194,3227.3,3226.4,0.8215]
[1736879521707,3.33132594,3227.3,3226.4,0.8215]
[1736879521904,0.37723259,3227.2,3226.4,0.8215]
[1736879522111,0.03874091,3227.1,3226.4,0.8215]
[1736879522427,3.09912,3226.8,3226.4,0.8215]
[1736879522996,3.09889,3227.0,3226.4,0.8215]
[1736879523346,0.194,3227.3,3226.4,4.30302]
[1736879523630,3.09866,3227.2,3226.4,1.20365]
[1736879523936,3.09866,3227.2,3226.4,0.8215]
[1736879524237,3.29265,3227.3,3226.6,0.8215]
[1736879524416,3.09869,3227.2,3226.6,0.8215]
[1736879524625,0.194,3227.3,3226.6,3.92068]
[1736879524807,3.09838,3227.5,3226.7,0.8215]
[1736879525007,3.09838,3227.5,3226.2,3.09954]
[1736879525008,0.194,3227.5,3226.9,0.8215]
[1736879525236,3.09828,3227.6,3226.9,0.8215]
[1736879525894,0.1655672,3227.7,3227.1,3.09867]
[1736879526099,0.1655672,3227.7,3227.2,0.8215]
[1736879526703,3.2637872,3227.7,3227.2,0.8215]
[1736879527036,3.89997092,3227.7,3227.2,0.8215]
[1736879527219,3.09828,3227.6,3227.2,0.8215]
[1736879527410,3.09848,3227.4,3227.2,0.8215]
[1736879527610,0.80175092,3227.7,3227.2,0.8215]
[1736879527827,0.55,3227.6,3226.5,0.7856]
[1736879527999,0.55,3227.4,3226.5,4.474099]
[1736879528203,0.58873734,3227.4,3226.5,1.474099]
[1736879528401,0.58873734,3227.4,3226.5,0.7856]
[1736879528600,3.09871,3227.2,3226.5,0.7856]
[1736879528801,0.03873867,3227.2,3226.5,0.7856]
[1736879529106,0.55,3227.0,3225.9,0.7856]
[1736879529306,0.03873867,3227.2,3226.0,0.7856]
[1736879529307,3.09897,3226.9,3226.0,0.7856]
[1736879529506,3.09897,3226.9,3226.1,0.388549]
[1736879529915,0.58874361,3227.1,3226.1,0.388549]
[1736879530119,3.09914,3226.7,3226.0,0.7856]
[1736879530512,3.13805399,3226.6,3226.0,0.7856]
[1736879530713,3.09933,3226.5,3226.0,0.7856]
[1736879530904,3.09943,3226.4,3226.0,0.7856]
[1736879531213,0.03874399,3226.6,3226.0,0.7856]
[1736879531214,0.55,3226.5,3226.0,0.7856]
[1736879531813,3.64941,3226.5,3226.0,0.7856]
[1736879532151,0.193,3226.6,3226.0,0.7856]
[1736879533009,3.29223,3226.6,3226.0,0.7856]
[1736879533219,3.09923,3226.6,3226.0,0.7856]
[1736879533440,3.09933,3226.5,3226.0,0.7856]
[1736879533762,0.03874444,3226.4,3226.0,0.7856]
[1736879533967,0.55,3226.5,3226.0,0.7856]
[1736879534166,3.64941,3226.5,3226.0,0.7856]
[1736879534460,3.09935,3226.5,3226.0,0.7856]
[1736879535063,3.64914,3226.7,3226.0,0.7856]
[1736879535229,6.64632195,3227.1,3225.4,3.62779405]
[1736879535230,0.194,3227.1,3226.1,0.7856]
[1736879535763,0.23273994,3227.1,3226.3,0.7856]
[1736879536005,3.09905,3226.8,3226.3,0.7856]
[1736879536143,0.0441,3227.5,3226.3,0.7856]
[1736879536350,3.09871,3227.2,3226.3,0.7856]
[1736879536552,3.09871,3227.2,3226.4,0.388521]
[1736879536899,3.09889,3227.0,3226.4,0.388521]
[1736879537107,3.09889,3227.0,3226.3,0.7856]
[1736879540309,0.55,3227.1,3226.3,0.7856]
[1736879540765,0.55,3227.1,3226.3,3.8851]
[1736879540964,3.09878,3227.1,3226.3,0.7856]
[1736879542793,0.743,3227.3,3226.3,0.7856]
[1736879542794,3.09888,3227.0,3226.3,0.7856]
[1736879542971,0.309888,3226.9,3226.3,0.7856]
[1736879543172,0.193,3227.3,3226.4,3.73651264]
[1736879543476,0.193,3227.3,3226.6,0.8093]
[1736879543702,0.1655672,3227.7,3226.8,3.09895]
[1736879544014,0.1655672,3227.7,3227.1,3.0]
[1736879544218,0.1655672,3227.7,3227.2,0.8093]
[1736879544520,0.1655672,3227.7,3227.4,0.8093]
[1736879544861,0.1655672,3227.7,3227.4,3.90776]
[1736879545061,0.1655672,3227.7,3227.5,0.8093]
[1736879550105,0.1655672,3227.7,3227.6,6.86474107]
[1736879550429,0.1655672,3227.7,3227.6,6.83478264]
[1736879550636,0.1655672,3227.7,3227.6,4.59104826]
[1736879550835,0.1655672,3227.7,3227.6,7.5182609]
[1736879552030,0.1655672,3227.7,3227.6,4.59104826]
[1736879552245,0.1655672,3227.7,3227.6,1.49277826]
[1736879553226,0.1655672,3227.7,3227.6,4.59104826]
[1736879553677,0.1655672,3227.7,3227.6,1.49277826]
[1736879554167,0.1655672,3227.7,3227.6,0.8093]
[1736879558760,0.1655672,3227.7,3227.2,0.8093]
[1736879561476,0.1655672,3227.7,3227.2,3.0]
[1736879561641,0.1655672,3227.7,3227.5,3.09837]
[1736879562075,0.1655672,3227.7,3227.6,3.09827]
[1736879562289,0.1655672,3227.7,3227.6,4.51011826]
[1736879562676,0.1655672,3227.7,3227.6,1.41184826]
[1736879562879,0.1655672,3227.7,3227.6,0.8093]
[1736879563176,0.1655672,3227.7,3227.1,0.8093]
[1736879563476,3.09829,3227.6,3227.1,0.8093]
[1736879563676,0.55,3227.6,3226.3,0.8093]
[1736879563881,0.58873505,3227.6,3226.3,0.8093]
[1736879564055,0.55,3227.6,3226.7,0.62182599]
[1736879564251,3.64833,3227.6,3226.7,3.62182599]
[1736879564451,3.64833,3227.6,3226.8,0.8093]
[1736879564651,0.55,3227.6,3226.8,0.8093]
[1736879564852,0.08283461,3227.5,3226.5,0.8093]
[1736879565058,3.09857,3227.3,3226.5,0.8093]
[1736879565277,3.09866,3227.2,3226.5,0.8093]
[1736879565643,0.314267,3227.3,3226.5,0.8093]
[1736879565845,3.09878,3227.1,3226.5,0.8093]
[1736879566083,3.09884,3227.1,3226.5,0.8093]
[1736879566281,0.0441,3227.0,3226.2,3.8327]
[1736879566683,0.58873942,3226.9,3226.2,0.8327]
[1736879566888,3.0994,3226.5,3225.6,0.8327]
[1736879567085,3.0994,3226.5,3225.7,3.0]
[1736879567304,3.0994,3226.5,3225.7,1.31490514]
[1736879567480,3.0994,3226.5,3225.7,0.63163514]
[1736879567977,3.0994,3226.5,3225.7,3.63163514]
[1736879568178,0.55,3226.7,3225.7,3.63163514]
[1736879568379,3.64916,3226.7,3225.7,3.63163514]
[1736879568979,3.09926,3226.6,3225.7,3.63163514]
[1736879569893,3.468596,3226.6,3225.7,3.63163514]
[1736879571404,3.468596,3226.6,3225.7,0.63163514]
[1736879571698,3.34049523,3233.6,3225.8,0.8327]
[1736879571699,0.0441,3227.1,3225.8,0.8327]
[1736879571899,0.0441,3227.1,3225.9,0.8327]
[1736879572120,3.09891,3227.0,3225.9,0.8327]
[1736879572481,0.0441,3227.1,3225.9,0.8327]
[1736879572665,0.0441,3227.1,3226.1,3.09969]
[1736879573000,0.358383,3227.1,3226.1,3.09969]
[1736879573205,0.314283,3227.1,3226.3,0.8327]
[1736879573626,3.413053,3227.1,3226.3,0.8327]
[1736879574207,0.0441,3227.4,3226.3,0.8327]
[1736879574386,0.0441,3227.4,3226.5,3.09925]
[1736879574772,0.0441,3227.4,3226.6,0.049]
[1736879575633,0.0441,3227.4,3226.7,0.8248]
[1736879576422,3.09858,3227.3,3226.7,0.8248]
[1736879576623,0.0441,3227.4,3226.7,0.8248]
[1736879576624,3.09877,3227.1,3226.7,0.8248]
[1736879576777,3.09877,3227.1,3226.6,0.049]
[1736879577612,3.09856,3227.3,3226.6,0.049]
[1736879578118,3.0984,3227.5,3226.7,0.8248]
[1736879578414,0.195,3227.6,3226.9,3.09892]
[1736879578577,0.195,3227.6,3227.0,0.392372]
[1736879578972,0.195,3227.6,3226.8,0.8248]
[1736879579190,3.2637672,3227.7,3226.8,0.8248]
[1736879579890,0.1655672,3227.7,3226.9,3.09891]
[1736879581011,0.1655672,3227.7,3227.0,0.8044]
[1736879581233,0.1655672,3227.7,3227.6,3.09827]
[1736879581521,0.1655672,3227.7,3227.6,4.212497]
[1736879582116,0.1655672,3227.7,3227.6,1.114227]
[1736879584625,0.1655672,3227.7,3227.6,0.8044]
[1736879584824,3.2637472,3227.7,3226.9,0.6148355]
[1736879585124,0.1655672,3227.7,3227.0,3.90324]
[1736879585797,0.1655672,3227.7,3227.1,3.09874]
[1736879586226,0.1655672,3227.7,3227.0,0.8044]
[1736879586388,0.03872728,3227.6,3227.0,0.8044]
[1736879586729,3.09835,3227.6,3227.0,0.8044]
[1736879586884,0.1655672,3227.7,3227.0,0.8044]
[1736879587089,0.1655672,3227.7,3227.1,3.09866]
[1736879587785,0.1655672,3227.7,3227.0,0.8044]
[1736879587993,0.1655672,3227.7,3227.0,1.19473]
[1736879588193,0.1655672,3227.7,3227.0,4.29357]
[1736879588527,0.1655672,3227.7,3227.1,3.09875]
[1736879588744,0.1655672,3227.7,3227.2,3.09863]
[1736879588948,0.1655672,3227.7,3227.4,3.09844]
[1736879589113,0.1655672,3227.7,3227.0,1.19473]
[1736879589313,0.1655672,3227.7,3227.2,3.0986]
[1736879590121,0.1655672,3227.7,3227.3,3.09856]
[1736879590341,0.1655672,3227.7,3227.5,0.8044]
[1736879591229,0.1655672,3227.7,3227.6,3.09827]
[1736879591635,0.1655672,3227.7,3227.5,0.8044]
[1736879591838,0.1655672,3227.7,3227.6,3.488549]
[1736879596532,0.1655672,3227.7,3227.6,0.390279]
[1736879597465,0.1655672,3227.7,3227.5,3.09835]
[1736879597851,0.1655672,3227.7,3227.3,0.803]
[1736879598050,0.1655672,3227.7,3227.3,3.90152]
[1736879598257,0.1655672,3227.7,3227.3,0.803]
[1736879598454,0.1655672,3227.7,3227.0,0.803]
[1736879598664,0.1655672,3227.7,3226.7,3.0]
[1736879598665,0.1655672,3227.7,3226.8,0.63613539]
[1736879598865,0.195,3227.6,3226.7,0.803]
[1736879599174,3.09863,3227.3,3226.5,3.86669915]
[1736879599341,3.09863,3227.3,3226.4,3.90242]
[1736879599894,0.0441,3227.5,3226.4,3.90242]
[1736879599895,3.09876,3227.1,3226.4,0.803]
[1736879600176,0.0441,3227.0,3226.4,0.803]
[1736879600384,0.0441,3227.0,3226.4,3.90235]
[1736879600551,0.0441,3227.0,3226.4,0.803]
[1736879600757,3.09861,3227.3,3226.3,3.09949]
[1736879600955,3.412881,3227.3,3226.4,3.09942]
[1736879601178,0.314271,3227.3,3226.2,0.803]
[1736879601340,3.14257,3227.4,3226.5,3.09932]
[1736879601943,3.09874,3227.2,3226.2,0.803]
[1736879602145,0.0441,3227.4,3226.2,0.803]
[1736879602807,0.1655672,3227.7,3226.8,0.803]
[1736879603081,0.1655672,3227.7,3227.3,3.09848]
[1736879603445,0.1655672,3227.7,3227.1,3.09868]
[1736879603855,0.1655672,3227.7,3227.2,3.09863]
[1736879605085,0.1655672,3227.7,3226.9,0.37273213]
[1736879605409,0.1655672,3227.7,3227.2,3.09864]
[1736879605904,0.1655672,3227.7,3227.0,3.0988]
[1736879606389,0.0441,3227.1,3226.1,0.803]
[1736879606692,3.09885,3227.0,3226.1,4.66969915]
[1736879606857,3.09902,3226.9,3226.1,4.66969915]
[1736879607592,0.27784174,3227.1,3225.9,1.30388688]
[1736879607889,0.195,3227.1,3226.4,2.92432133]
[1736879608053,0.195,3227.1,3226.6,3.09921]
[1736879608453,3.0,3227.6,3226.7,3.9021]
[1736879608654,3.82725222,3227.6,3226.7,3.9021]
[1736879608856,0.82725222,3227.6,3226.7,3.9021]
[1736879609091,3.09849,3227.4,3226.5,3.0993]
[1736879609294,3.09849,3227.4,3226.4,0.803]